fUSD/lending_fUSD_20250513
["ID","MTS","AMOUNT","RATE_DAILY","PERIOD"]
[360904478,1747133908973,-400.0,0.00011979,2]
[360904479,1747133908997,-447.55,0.00011979,2]
[360904480,1747133909020,-562.61,0.00011979,2]
[360904481,1747133909043,-647.74,0.00011979,2]
[360904482,1747133909066,-522.36,0.00011979,2]
[360904483,1747133909091,-753.22,0.00011979,2]
[360904484,1747133909115,-400.0,0.00011979,2]
[360904485,1747133909140,-230.27969179,0.00011979,2]
[360904486,1747133909164,-400.0,0.00011979,2]
[360904487,1747133909188,-1644.47,0.00011979,2]
[360904488,1747133909408,-1747.86,0.00011979,2]
[360904489,1747133909432,-400.0,0.00011979,2]
[360904490,1747133909457,-400.0,0.00011979,2]
[360904491,1747133909485,-400.0,0.00011979,2]
[360904492,1747133909509,-400.0,0.00011979,2]
[360904493,1747133909534,-400.0,0.00011979,2]
[360904494,1747133909559,-2697.83,0.00011979,2]
[360904495,1747133909583,-628.56,0.00011979,2]
[360904496,1747133909607,-400.0,0.00011979,2]
[360904497,1747133909631,-400.0,0.00011979,2]
[360904498,1747133909656,-2073.32,0.00011979,2]
[360904499,1747133909680,-837.55,0.00011979,2]
[360904500,1747133909703,-400.0,0.00011979,2]
[360904501,1747133909727,-400.0,0.00011979,2]
[360904502,1747133909750,-916.68,0.00011979,2]
[360904503,1747133909773,-400.0,0.00011979,2]
[360904504,1747133909801,-1237.75,0.00011979,2]
[360904505,1747133909825,-1587.77,0.00011979,2]
[360904506,1747133909848,-400.0,0.00011979,2]
[360904507,1747133909874,-637.76,0.00011979,2]
[360904508,1747133909899,-296.46929183,0.00011979,2]
[360904509,1747133909923,-2550.69,0.00011979,2]
[360904510,1747133909948,-400.0,0.00011979,2]
[360904511,1747133909973,-400.0,0.00011979,2]
[360904512,1747133909996,-400.0,0.00011979,2]
[360904513,1747133910021,-575.05,0.00011979,2]
[360904514,1747133910045,-784.29,0.00011979,2]
[360904515,1747133910070,-30724.84,0.00011979,2]
[360904516,1747133910095,-400.0,0.00011979,2]
[360904517,1747133910119,-400.0,0.00011979,2]
[360904518,1747133910144,-400.0,0.00011979,2]
[360904519,1747133910168,-400.0,0.00011979,2]
[360904520,1747133910195,-2207.2,0.00011979,2]
[360904521,1747133910219,-69248.94,0.00011979,2]
[360904522,1747133910244,-400.0,0.00011979,2]
[360904523,1747133910282,-400.0,0.00011979,2]
[360904524,1747133910309,-400.0,0.00011979,2]
[360904525,1747133910334,-478.33,0.00011979,2]
[360904526,1747133910361,-915.84,0.00011979,2]
[360904527,1747133910387,-746.13,0.00011979,2]
[360904528,1747133910415,-400.0,0.00011979,2]
[360904529,1747133910440,-1431.87,0.00011979,2]
[360904530,1747133910466,-1019.96,0.00011979,2]
[360904531,1747133910491,-5018.7,0.00011979,2]
[360904532,1747133910517,-400.0,0.00011979,2]
[360904533,1747133910544,-204.78662724,0.00011979,2]
[360904534,1747133910569,-409.08,0.00011979,2]
[360904535,1747133910593,-400.0,0.00011979,2]
[360904536,1747133910617,-4780.64,0.00011979,2]
[360904537,1747133910641,-628.94,0.0001198,2]
[360904538,1747133910671,-400.0,0.0001198,2]
[360904539,1747133910697,-819.91,0.0001198,2]
[360904540,1747133910723,-400.0,0.0001198,2]
[360904541,1747133910750,-400.0,0.0001198,2]
[360904542,1747133910777,-400.0,0.0001198,2]
[360904543,1747133910804,-925.4,0.0001198,2]
[360904544,1747133910831,-400.0,0.0001198,2]
[360904545,1747133910857,-400.0,0.0001198,2]
[360904546,1747133910883,-458.48,0.0001198,2]
[360904547,1747133910908,-400.0,0.0001198,2]
[360904548,1747133910933,-400.0,0.0001198,2]
[360904549,1747133910958,-400.0,0.0001198,2]
[360904550,1747133910983,-576.88,0.0001198,2]
[360904551,1747133911009,-400.0,0.0001198,2]
[360904552,1747133911033,-543.12148162,0.0001198,2]
[360904553,1747133911057,-400.0,0.0001198,2]
[360904554,1747133911080,-400.0,0.0001198,2]
[360904555,1747133911104,-400.0,0.0001198,2]
[360904556,1747133911128,-400.0,0.0001198,2]
[360904557,1747133911153,-400.0,0.0001198,2]
[360904558,1747133911178,-469.42472891,0.0001198,2]
[360904559,1747133911207,-400.0,0.0001198,2]
[360904560,1747133911232,-2178.14,0.0001198,2]
[360904561,1747133911257,-400.0,0.00011999,2]
[360904562,1747133911283,-400.0,0.00011999,2]
[360904563,1747133911308,-857.17,0.00011999,2]
[360904564,1747133911335,-400.0,0.00011999,2]
[360904565,1747133911359,-400.0,0.00011999,2]
[360904566,1747133911385,-400.0,0.00011999,2]
[360904567,1747133911410,-1716.42,0.00011999,2]
[360904568,1747133911436,-487.94,0.00011999,2]
[360904569,1747133911462,-797.25,0.00011999,2]
[360904570,1747133911486,-400.0,0.00011999,2]
[360904571,1747133911510,-644.5,0.00011999,2]
[360904572,1747133911534,-400.0,0.00011999,2]
[360904573,1747133911558,-582.0,0.00011999,2]
[360904574,1747133911583,-400.0,0.00011999,2]
[360904575,1747133911607,-1145.48655445,0.00012008,2]
[360904576,1747133911631,-14179.68392985,0.00012154,2]
[360904577,1747133911656,-157.1793793,0.00012191,2]
[360904578,1747133911681,-4439.2482337,0.000122,2]
[360904579,1747133911709,-21665.79954487,0.00012222,2]
[360904580,1747133911733,-599.60298507,0.00012247,2]
[360904581,1747133911758,-207.4,0.00012247,2]
[360904582,1747133911784,-400.0,0.00012252,2]
[360904583,1747133911808,-397.85162297,0.00012252,2]
[360904584,1747133911833,-770.87,0.00012252,2]
[360904585,1747133911859,-500.0,0.00012252,2]
[360904586,1747133911884,-400.0,0.00012252,2]
[360904587,1747133911909,-655.09,0.00012252,2]
[360904588,1747133911932,-400.0,0.00012252,2]
[360904589,1747133911956,-400.0,0.00012252,2]
[360904590,1747133912173,-400.0,0.00012252,2]
[360904591,1747133912199,-938.68,0.00012252,2]
[360904592,1747133912225,-400.0,0.00012252,2]
[360904593,1747133912263,-400.0,0.00012252,2]
[360904594,1747133912290,-1188.06,0.00012252,2]
[360904595,1747133912317,-400.0,0.00012252,2]
[360904596,1747133912343,-400.0,0.00012252,2]
[360904597,1747133912368,-390.36051489,0.00012252,2]
[360904598,1747133912395,-407.43160686,0.00012252,2]
[360904599,1747133912421,-3230.7,0.00012252,2]
[360904600,1747133912447,-542.34,0.00012252,2]
[360904601,1747133912475,-400.0,0.00012252,2]
[360904602,1747133912501,-517.27,0.00012252,2]
[360904603,1747133912528,-1439.45,0.00012252,2]
[360904604,1747133912556,-400.0,0.00012252,2]
[360904605,1747133912581,-957.16,0.00012252,2]
[360904606,1747133912607,-400.0,0.00012252,2]
[360904607,1747133912632,-1944.38641972,0.00012253,2]
[360904608,1747133912658,-400.0,0.00012253,2]
[360904609,1747133912685,-937.6,0.00012253,2]
[360904610,1747133912711,-1000.0,0.00012253,2]
[360904611,1747133912735,-400.0,0.00012253,2]
[360904612,1747133912765,-400.0,0.00012253,2]
[360904613,1747133912792,-400.0,0.00012253,2]
[360904614,1747133912817,-593.6,0.00012253,2]
[360904615,1747133912843,-489.0,0.00012253,2]
[360904616,1747133912869,-400.0,0.00012253,2]
[360904617,1747133912897,-400.0,0.00012253,2]
[360904618,1747133912922,-447.45,0.00012253,2]
[360904619,1747133912948,-1151.36,0.00012253,2]
[360904620,1747133912975,-708.05,0.00012253,2]
[360904621,1747133913003,-451.9,0.00012253,2]
[360904622,1747133913028,-193.24016512,0.00012253,2]
[360904623,1747133913055,-447.55,0.00012253,2]
[360904624,1747133913081,-562.61,0.00012253,2]
[360904625,1747133913106,-647.74,0.00012253,2]
[360904626,1747133913133,-522.36,0.00012253,2]
[360904627,1747133913160,-753.22,0.00012253,2]
[360904628,1747133913186,-400.0,0.00012253,2]
[360904629,1747133913212,-400.0,0.00012253,2]
[360904630,1747133913238,-1644.47,0.00012253,2]
[360904631,1747133913266,-1747.86,0.00012253,2]
[360904632,1747133913292,-400.0,0.00012253,2]
[360904633,1747133913318,-400.0,0.00012253,2]
[360904634,1747133913344,-400.0,0.00012253,2]
[360904635,1747133913370,-400.0,0.00012253,2]
[360904636,1747133913396,-400.0,0.00012253,2]
[360904637,1747133913424,-2697.83,0.00012253,2]
[360904638,1747133913450,-628.56,0.00012253,2]
[360904639,1747133913475,-167.30113509,0.00012253,2]
[360904640,1747133913502,-433.02718372,0.00012253,2]
[360904641,1747133913528,-2073.32,0.00012253,2]
[360904642,1747133913554,-837.55,0.00012253,2]
[360904643,1747133913580,-400.0,0.00012253,2]
[360904644,1747133913606,-400.0,0.00012253,2]
[360904645,1747133913631,-916.68,0.00012253,2]
[360904646,1747133913657,-1237.75,0.00012253,2]
[360904647,1747133913683,-1587.77,0.00012253,2]
[360904648,1747133913710,-637.76,0.00012253,2]
[360904649,1747133913738,-2550.69,0.00012253,2]
[360904650,1747133913764,-294.52175148,0.00012253,2]
[360904651,1747133913796,-400.0,0.00012253,2]
[360904652,1747133913822,-400.0,0.00012253,2]
[360904653,1747133913847,-575.05,0.00012253,2]
[360904654,1747133913873,-784.29,0.00012253,2]
[360904655,1747133913899,-30724.84,0.00012253,2]
[360904656,1747133913926,-400.0,0.00012253,2]
[360904657,1747133913953,-400.0,0.00012253,2]
[360904658,1747133913979,-400.0,0.00012253,2]
[360904659,1747133914005,-400.0,0.00012253,2]
[360904660,1747133914033,-2207.2,0.00012253,2]
[360904661,1747133914058,-69248.94,0.00012253,2]
[360904662,1747133914082,-400.0,0.00012253,2]
[360904663,1747133914109,-400.0,0.00012253,2]
[360904664,1747133914135,-478.33,0.00012253,2]
[360904665,1747133914163,-915.84,0.00012253,2]
[360904666,1747133914189,-746.13,0.00012253,2]
[360904667,1747133914214,-400.0,0.00012253,2]
[360904668,1747133914241,-1431.87,0.00012253,2]
[360904669,1747133914267,-1019.96,0.00012253,2]
[360904670,1747133914293,-5018.7,0.00012253,2]
[360904671,1747133914324,-400.0,0.00012253,2]
[360904672,1747133914357,-409.08,0.00012253,2]
[360904673,1747133914383,-4780.64,0.00012253,2]
[360904674,1747133914410,-400.0,0.00012253,2]
[360904675,1747133914437,-151.490854,0.00012254,2]
[360904676,1747133914464,-151.0,0.00012254,2]
[360904677,1747133914491,-245.188774,0.00012254,2]
[360904678,1747133914518,-151.0,0.00012254,2]
[360904679,1747133914545,-151.0,0.00012254,2]
[360904680,1747133914572,-151.0,0.00012254,2]
[360904681,1747133914599,-400.0,0.00012254,2]
[360904682,1747133914627,-434.8,0.00012254,2]
[360904683,1747133914656,-400.0,0.00012254,2]
[360904684,1747133914683,-233.13498201,0.00012254,2]
[360904685,1747133914707,-400.0,0.00012254,2]
[360904686,1747133914733,-424.5831993,0.00012254,2]
[360904687,1747133914757,-525.02504221,0.00012254,2]
[360904688,1747133914782,-400.0,0.00012254,2]
[360904689,1747133914813,-448.6662362,0.00012254,2]
[360904690,1747133914838,-400.0,0.00012254,2]
[360904691,1747133914863,-332.18834188,0.00012254,2]
[360904692,1747133914888,-400.0,0.00012254,2]
[360904693,1747133914913,-400.0,0.00012254,2]
[360904694,1747133914937,-487.46009664,0.00012254,2]
[360904695,1747133914961,-400.0,0.00012254,2]
[360904696,1747133914984,-400.0,0.00012254,2]
[360904697,1747133915008,-400.0,0.00012254,2]
[360904698,1747133915031,-400.0,0.00012254,2]
[360904699,1747133915055,-400.0,0.00012254,2]
[360904700,1747133915078,-400.0,0.00012254,2]
[360904701,1747133915103,-615.963052,0.00012254,2]
[360904702,1747133915127,-615.963052,0.00012254,2]
[360904703,1747133915151,-430.77,0.00012254,2]
[360904704,1747133915176,-615.963052,0.00012254,2]
[360904705,1747133915200,-615.963052,0.00012254,2]
[360904706,1747133915437,-615.963052,0.00012254,2]
[360904707,1747133915463,-615.963052,0.00012254,2]
[360904708,1747133915487,-151.0,0.00012254,2]
[360904709,1747133915512,-615.963052,0.00012254,2]
[360904710,1747133915535,-151.0,0.00012254,2]
[360904711,1747133915559,-615.963042,0.00012254,2]
[360904712,1747133915584,-151.0,0.00012254,2]
[360904713,1747133915608,-151.0,0.00012254,2]
[360904714,1747133915631,-400.0,0.00012254,2]
[360904715,1747133915655,-400.0,0.00012254,2]
[360904716,1747133915678,-400.0,0.00012254,2]
[360904717,1747133915702,-400.0,0.00012254,2]
[360904718,1747133915726,-400.0,0.00012254,2]
[360904719,1747133915750,-999.5,0.00012254,2]
[360904720,1747133915775,-400.0,0.00012254,2]
[360904721,1747133915801,-328.72216631,0.00012254,2]
[360904722,1747133915826,-401.90924508,0.00012254,2]
[360904723,1747133915852,-583.66,0.00012254,2]
[360904724,1747133915878,-406.89838808,0.00012254,2]
[360904725,1747133915904,-151.0,0.00012254,2]
[360904726,1747133915929,-151.0,0.00012254,2]
[360904727,1747133915953,-151.0,0.00012254,2]
[360904728,1747133915977,-151.0,0.00012254,2]
[360904729,1747133916001,-400.0,0.00012254,2]
[360904730,1747133916025,-400.0,0.00012254,2]
[360904731,1747133916049,-400.0,0.00012254,2]
[360904732,1747133916073,-480.55,0.00012254,2]
[360904733,1747133916097,-400.0,0.00012254,2]
[360904734,1747133916122,-400.0,0.00012254,2]
[360904735,1747133916146,-400.0,0.00012254,2]
[360904736,1747133916172,-165.06841818,0.00012254,2]
[360904737,1747133916197,-400.0,0.00012254,2]
[360904738,1747133916221,-400.0,0.00012254,2]
[360904739,1747133916245,-400.0,0.00012254,2]
[360904740,1747133916270,-465.8196264,0.00012254,2]
[360904741,1747133916294,-400.0,0.00012254,2]
[360904742,1747133916320,-531.77,0.00012254,2]
[360904743,1747133916345,-348.73377859,0.00012254,2]
[360904744,1747133916370,-400.0,0.00012254,2]
[360904745,1747133916396,-400.0,0.00012254,2]
[360904746,1747133916422,-400.0,0.00012254,2]
[360904747,1747133916448,-400.0,0.00012254,2]
[360904748,1747133916472,-585.6,0.00012254,2]
[360904749,1747133916496,-420.47,0.00012254,2]
[360904750,1747133916520,-1756.14,0.00012254,2]
[360904751,1747133916543,-400.0,0.00012254,2]
[360904752,1747133916568,-400.0,0.00012254,2]
[360904753,1747133916604,-400.0,0.00012254,2]
[360904754,1747133916628,-400.0,0.00012254,2]
[360904755,1747133916653,-400.0,0.00012254,2]
[360904756,1747133916677,-400.0,0.00012254,2]
[360904757,1747133916702,-563.27,0.00012254,2]
[360904758,1747133916726,-1036.06,0.00012254,2]
[360904759,1747133916750,-400.0,0.00012254,2]
[360904760,1747133916774,-400.0,0.00012254,2]
[360904761,1747133916802,-400.0,0.00012254,2]
[360904762,1747133916827,-400.0,0.00012254,2]
[360904763,1747133916853,-585.83,0.00012254,2]
[360904764,1747133916880,-400.0,0.00012254,2]
[360904765,1747133916904,-400.0,0.00012254,2]
[360904766,1747133916928,-474.51,0.00012254,2]
[360904767,1747133916953,-154.726793,0.00012254,2]
[360904768,1747133916979,-400.0,0.00012254,2]
[360904769,1747133917004,-400.0,0.00012254,2]
[360904770,1747133917031,-400.0,0.00012254,2]
[360904771,1747133917056,-400.0,0.00012254,2]
[360904772,1747133917079,-661.07,0.00012254,2]
[360904773,1747133917104,-400.0,0.00012254,2]
[360904774,1747133917127,-400.0,0.00012254,2]
[360904775,1747133917151,-400.0,0.00012254,2]
[360904776,1747133917175,-400.0,0.00012254,2]
[360904777,1747133917201,-400.0,0.00012254,2]
[360904778,1747133917226,-400.0,0.00012254,2]
[360904779,1747133917252,-400.0,0.00012254,2]
[360904780,1747133917276,-400.0,0.00012254,2]
[360904781,1747133917301,-400.0,0.00012254,2]
[360904782,1747133917326,-458.13,0.00012254,2]
[360904783,1747133917352,-915.21,0.00012254,2]
[360904784,1747133917377,-902.78,0.00012254,2]
[360904785,1747133917403,-412.14,0.00012254,2]
[360904786,1747133917429,-199.80794031,0.00012254,2]
[360904787,1747133917453,-470.67,0.00012254,2]
[360904788,1747133917476,-400.0,0.00012254,2]
[360904789,1747133917501,-400.0,0.00012254,2]
[360904790,1747133917525,-400.0,0.00012254,2]
[360904791,1747133917549,-400.0,0.00012254,2]
[360904792,1747133917573,-400.0,0.00012254,2]
[360904793,1747133917598,-400.0,0.00012254,2]
[360904794,1747133917623,-400.0,0.00012254,2]
[360904795,1747133917649,-400.0,0.00012254,2]
[360904796,1747133917675,-1714.26,0.00012254,2]
[360904797,1747133917700,-400.0,0.00012254,2]
[360904798,1747133917724,-400.0,0.00012254,2]
[360904799,1747133917748,-400.0,0.00012254,2]
[360904800,1747133917772,-400.0,0.00012254,2]
[360904801,1747133917796,-286.95069397,0.00012254,2]
[360904802,1747133917819,-583.19,0.00012254,2]
[360904803,1747133917843,-400.0,0.00012254,2]
[360904804,1747133917866,-713.7,0.00012254,2]
[360904805,1747133917889,-3034.3,0.00012254,2]
[360904806,1747133917913,-400.0,0.00012254,2]
[360904807,1747133917937,-325.48210671,0.00012254,2]
[360904808,1747133917959,-420.86317081,0.00012254,2]
[360904809,1747133917982,-400.0,0.00012254,2]
[360904810,1747133918006,-670.93,0.00012254,2]
[360904811,1747133918030,-400.0,0.00012254,2]
[360904812,1747133918054,-400.0,0.00012254,2]
[360904813,1747133918079,-879.99,0.00012254,2]
[360904814,1747133918104,-461.49263,0.00012254,2]
[360904815,1747133918128,-400.0,0.00012254,2]
[360904816,1747133918151,-577.57,0.00012254,2]
[360904817,1747133918175,-400.0,0.00012254,2]
[360904818,1747133918199,-10979.05,0.00012254,2]
[360904819,1747133918223,-400.0,0.00012254,2]
[360904820,1747133918247,-683.7,0.00012254,2]
[360904821,1747133918270,-3744.94,0.00012254,2]
[360904822,1747133918462,-228.093153,0.00012254,2]
[360904823,1747133918489,-228.093153,0.00012254,2]
[360904824,1747133918516,-400.0,0.00012254,2]
[360904825,1747133918543,-228.093153,0.00012254,2]
[360904826,1747133918567,-228.093153,0.00012254,2]
[360904827,1747133918591,-4681.5,0.00012254,2]
[360904828,1747133918615,-785.1,0.00012254,2]
[360904829,1747133918639,-400.0,0.00012254,2]
[360904830,1747133918663,-400.0,0.00012254,2]
[360904831,1747133918687,-628.94,0.00012254,2]
[360904832,1747133918711,-400.0,0.00012254,2]
[360904833,1747133918733,-819.91,0.00012254,2]
[360904834,1747133918757,-591.348445,0.00012254,2]
[360904835,1747133918782,-591.348445,0.00012254,2]
[360904836,1747133918809,-400.0,0.00012254,2]
[360904837,1747133918835,-400.0,0.00012254,2]
[360904838,1747133918859,-400.0,0.00012254,2]
[360904839,1747133918885,-925.4,0.00012254,2]
[360904840,1747133918911,-400.0,0.00012254,2]
[360904841,1747133918935,-400.0,0.00012254,2]
[360904842,1747133918960,-458.48,0.00012254,2]
[360904843,1747133918985,-154.401203,0.00012254,2]
[360904844,1747133919008,-400.0,0.00012254,2]
[360904845,1747133919032,-400.0,0.00012254,2]
[360904846,1747133919057,-400.0,0.00012254,2]
[360904847,1747133919082,-576.88,0.00012254,2]
[360904848,1747133919106,-400.0,0.00012254,2]
[360904849,1747133919130,-400.0,0.00012254,2]
[360904850,1747133919155,-400.0,0.00012254,2]
[360904851,1747133919179,-400.0,0.00012254,2]
[360904852,1747133919204,-400.0,0.00012254,2]
[360904853,1747133919228,-400.0,0.00012254,2]
[360904854,1747133919252,-400.0,0.00012254,2]
[360904855,1747133919275,-2178.14,0.00012254,2]
[360904856,1747133919298,-200.0,0.00012265,2]
[360904857,1747133919322,-1069.0,0.00012268,2]
[360904858,1747133919347,-3018.30956127,0.0001227,2]
[360904859,1747133919370,-703.1,0.00012273,2]
[360904860,1747133919395,-400.0,0.00012273,2]
[360904861,1747133919420,-496.09,0.00012273,2]
[360904862,1747133919444,-657.4,0.00012273,2]
[360904863,1747133919470,-683.28,0.00012273,2]
[360904864,1747133919494,-400.0,0.00012273,2]
[360904865,1747133919519,-2694.93,0.00012273,2]
[360904866,1747133919564,-451.570402,0.00012273,2]
[360904867,1747133919595,-4382.809694,0.00012273,2]
[360904868,1747133919622,-400.0,0.00012273,2]
[360904869,1747133919650,-400.0,0.00012273,2]
[360904870,1747133919676,-400.0,0.00012273,2]
[360904871,1747133919701,-480.12,0.00012273,2]
[360904872,1747133919728,-1594.64,0.00012273,2]
[360904873,1747133919764,-400.0,0.00012273,2]
[360904874,1747133919791,-400.0,0.00012273,2]
[360904875,1747133919818,-662.35,0.00012273,2]
[360904876,1747133919845,-267.19193368,0.00012273,2]
[360904877,1747133919872,-1219.77,0.00012273,2]
[360904878,1747133919898,-400.0,0.00012273,2]
[360904879,1747133919926,-400.0,0.00012273,2]
[360904880,1747133919952,-857.17,0.00012273,2]
[360904881,1747133919978,-400.0,0.00012273,2]
[360904882,1747133920003,-400.0,0.00012273,2]
[360904883,1747133920028,-414.44122591,0.00012273,2]
[360904884,1747133920053,-1716.42,0.00012273,2]
[360904885,1747133920079,-487.94,0.00012273,2]
[360904886,1747133920104,-797.25,0.00012273,2]
[360904887,1747133920128,-400.0,0.00012273,2]
[360904888,1747133920154,-644.5,0.00012273,2]
[360904889,1747133920179,-400.0,0.00012273,2]
[360904890,1747133920204,-582.0,0.00012273,2]
[360904891,1747133920229,-400.0,0.00012273,2]
[360904892,1747133920252,-877.0,0.00012285,2]
[360904893,1747133920276,-164.52,0.000123,2]
[360904894,1747133920301,-200.0,0.00012387,2]
[360904895,1747133920328,-1156.89,0.000124,2]
[360904896,1747133920356,-1156.89,0.000124,2]
[360904897,1747133920383,-840.11,0.000124,2]
[360904898,1747133920409,-467.28,0.000124,2]
[360904899,1747133920436,-1153.73,0.000124,2]
[360904900,1747133920461,-150.12,0.000124,2]
[360904901,1747133920487,-150.0,0.000124,2]
[360904902,1747133920513,-457.29,0.000124,2]
[360904903,1747133920539,-352.8,0.000124,2]
[360904904,1747133920566,-1604.52,0.000124,2]
[360904905,1747133920592,-457.29,0.000124,2]
[360904906,1747133920618,-150.0,0.000124,2]
[360904907,1747133920643,-150.0,0.000124,2]
[360904908,1747133920670,-1606.62,0.000124,2]
[360904909,1747133920707,-803.73,0.000124,2]
[360904910,1747133920744,-452.28,0.000124,2]
[360904911,1747133920769,-324.94,0.000124,2]
[360904912,1747133920796,-151.44,0.000124,2]
[360904913,1747133920821,-150.45,0.000124,2]
[360904914,1747133920848,-803.94,0.000124,2]
[360904915,1747133920874,-358.43,0.000124,2]
[360904916,1747133920899,-298.61,0.000124,2]
[360904917,1747133920923,-803.94,0.000124,2]
[360904918,1747133920947,-150.0,0.000124,2]
[360904919,1747133920973,-152.53,0.000124,2]
[360904920,1747133920997,-953.9379477,0.000124,2]
[360904921,1747133923800,23900.0,0.00011566,2]
[360904923,1747134030675,-1200.0,0.00011978,2]
[360904924,1747134030700,-150.0,0.00011978,2]
[360904925,1747134030726,-200.0,0.00011978,2]
[360904926,1747134030752,-400.0,0.00011979,2]
[360904927,1747134030777,-400.0,0.00011979,2]
[360904928,1747134030803,-547.16404726,0.00011979,2]
[360904929,1747134030828,-400.0,0.00011979,2]
[360904930,1747134030853,-198.94485698,0.00011979,2]
[360904931,1747134030882,-685.45,0.00011979,2]
[360904932,1747134030908,-400.0,0.00011979,2]
[360904933,1747134030937,-400.0,0.00011979,2]
[360904934,1747134030965,-1439.15,0.00011979,2]
[360904935,1747134030989,-654.23,0.00011979,2]
[360904936,1747134031014,-426.99,0.00011979,2]
[360904937,1747134031039,-400.0,0.00011979,2]
[360904939,1747134031064,-1607.46,0.00011979,2]
[360904940,1747134031089,-615.02,0.00011979,2]
[360904941,1747134031114,-400.0,0.00011979,2]
[360904942,1747134031143,-400.0,0.00011979,2]
[360904943,1747134031167,-806.66,0.00011979,2]
[360904944,1747134031192,-400.0,0.00011979,2]
[360904945,1747134031219,-400.0,0.00011979,2]
[360904946,1747134031244,-2699.06,0.00011979,2]
[360904947,1747134031269,-529.43,0.00011979,2]
[360904948,1747134031294,-271.51202894,0.00011979,2]
[360904949,1747134031319,-400.0,0.00011979,2]
[360904950,1747134031344,-400.0,0.00011979,2]
[360904951,1747134031369,-768.32,0.00011979,2]
[360904952,1747134031394,-487.46,0.00011979,2]
[360904953,1747134031419,-400.0,0.00011979,2]
[360904954,1747134031445,-1652.68,0.00011979,2]
[360904955,1747134031473,-400.0,0.00011979,2]
[360904956,1747134031500,-1000.0,0.00011979,2]
[360904957,1747134031526,-400.0,0.00011979,2]
[360904958,1747134031553,-400.0,0.00011979,2]
[360904959,1747134031578,-400.0,0.00011979,2]
[360904960,1747134031603,-400.0,0.00011979,2]
[360904961,1747134031627,-290.34009773,0.00011979,2]
[360904962,1747134031653,-400.0,0.00011979,2]
[360904963,1747134031678,-400.0,0.00011979,2]
[360904964,1747134031704,-536.8,0.00011979,2]
[360904965,1747134031730,-400.0,0.00011979,2]
[360904966,1747134031755,-808.62,0.00011979,2]
[360904967,1747134031780,-190.7,0.00011979,2]
[360904968,1747134031804,-400.0,0.00011979,2]
[360904969,1747134031829,-400.0,0.00011979,2]
[360904970,1747134031864,-471.54,0.00011979,2]
[360904971,1747134031895,-1020.78,0.00011979,2]
[360904972,1747134031921,-400.0,0.00011979,2]
[360904973,1747134031948,-328.11463618,0.00011979,2]
[360904974,1747134031976,-335.67293979,0.00011979,2]
[360904975,1747134032004,-400.0,0.00011979,2]
[360904976,1747134032032,-400.0,0.00011979,2]
[360904977,1747134032059,-400.0,0.00011979,2]
[360904978,1747134032085,-479.8,0.00011979,2]
[360904979,1747134032112,-560.93,0.00011979,2]